bitfinex/quotes_ETHUSD_20251006
["timestamp","ask_amount","ask_price","bid_price","bid_amount"]
[1759779572475,18.1052407,4701.2,4701.1,0.00100001]
[1759779572950,19.3352407,4701.2,4701.1,0.00100001]
[1759779573149,19.4203651,4701.2,4701.1,0.00100001]
[1759779574341,21.6533651,4701.2,4701.1,0.00100001]
[1759779574668,23.45058274,4701.2,4701.1,0.00100001]
[1759779575481,20.6503651,4701.2,4701.1,0.00100001]
[1759779575989,21.8803651,4701.2,4701.1,0.00100001]
[1759779576762,21.8823651,4701.2,4701.1,0.00100001]
[1759779576959,22.44958274,4701.2,4701.1,0.00100001]
[1759779577187,21.8823651,4701.2,4701.1,0.00100001]
[1759779577349,23.1123651,4701.2,4701.1,0.00100001]
[1759779578746,24.3423651,4701.2,4701.1,0.00100001]
[1759779578947,2.76094273,4700.7,4700.6,0.001]
[1759779579161,3.55289316,4700.7,4700.6,0.001]
[1759779579481,2.12802179,4699.2,4698.6,0.4324]
[1759779579777,2.12802179,4699.2,4697.1,0.19398464]
[1759779579778,2.12802179,4699.2,4698.5,0.018]
[1759779579779,0.19672858,4699.2,4698.5,0.018]
[1759779579948,2.95835037,4699.2,4698.5,0.018]
[1759779580147,4.18835037,4699.2,4698.5,0.018]
[1759779580358,4.18835037,4699.2,4699.1,0.4424]
[1759779580359,2.06032858,4699.2,4699.1,0.4424]
[1759779580943,1.8636,4699.2,4699.1,0.4424]
[1759779581466,3.0936,4699.2,4699.1,0.4424]
[1759779581873,3.0936,4699.2,4699.1,5.2454]
[1759779582176,3.0936,4699.2,4699.1,2.8424]
[1759779582354,3.0936,4699.2,4699.1,5.2454]
[1759779582960,4.3236,4699.2,4699.1,2.8424]
[1759779583164,4.3236,4699.2,4699.1,5.2454]
[1759779583766,4.3236,4699.2,4699.1,2.8424]
[1759779583966,7.09677946,4699.2,4699.1,0.01]
[1759779584163,7.29420466,4699.2,4699.1,0.896]
[1759779584367,8.52420466,4699.2,4699.1,0.896]
[1759779584585,8.52420466,4699.2,4699.1,2.413]
[1759779585768,9.75420466,4699.2,4699.1,2.413]
[1759779587071,8.85618287,4699.2,4699.1,2.413]
[1759779587272,10.98401501,4699.2,4699.1,2.8454]
[1759779587471,8.85599322,4699.2,4699.1,2.8454]
[1759779587685,10.98401389,4699.2,4699.1,2.8454]
[1759779587886,8.8559921,4699.2,4699.1,2.8454]
[1759779588107,8.65875767,4699.2,4699.1,2.8454]
[1759779588272,10.78677946,4699.2,4699.1,2.414]
[1759779588579,12.01677946,4699.2,4699.1,2.414]
[1759779588785,12.21396679,4699.2,4699.1,2.414]
[1759779589394,12.32036679,4699.2,4699.1,2.414]
[1759779589599,12.12317946,4699.2,4699.1,2.8464]
[1759779589804,13.35317946,4699.2,4699.1,2.8464]
[1759779591213,14.58317946,4699.2,4699.1,2.8464]
[1759779592199,14.58317946,4699.2,4699.1,2.414]
[1759779592200,12.45515767,4699.2,4699.1,2.414]
[1759779592409,12.45515767,4699.2,4699.1,2.8464]
[1759779592593,13.68515767,4699.2,4699.1,2.8464]
[1759779593919,13.68515767,4699.2,4699.1,2.8474]
[1759779594076,14.91515767,4699.2,4699.1,2.8474]
[1759779595193,13.6364,4699.2,4699.1,2.8474]
[1759779595396,13.6364,4699.2,4699.1,5.2474]
[1759779595828,13.6364,4699.2,4699.1,11.55156]
[1759779596028,13.6364,4699.2,4699.1,11.474718]
[1759779596890,13.7364,4699.2,4699.1,11.474718]
[1759779598795,13.7364,4699.2,4699.1,2.8434]
[1759779599003,13.7364,4699.2,4699.1,5.2474]
[1759779601014,13.7364,4699.2,4699.1,2.8434]
[1759779601179,13.7364,4699.2,4699.1,5.2474]
[1759779601578,13.7364,4699.2,4699.1,11.533229]
[1759779601777,13.7364,4699.2,4699.1,4.9684]
[1759779602012,13.7364,4699.2,4699.1,7.3724]
[1759779602512,13.7364,4699.2,4699.1,13.360019]
[1759779602710,13.7364,4699.2,4699.1,7.3724]
[1759779603014,13.7364,4699.2,4699.1,10.211915]
[1759779603514,13.7364,4699.2,4699.1,14.647497]
[1759779603889,13.7364,4699.2,4699.1,7.3724]
[1759779604413,13.7364,4699.2,4699.1,9.87621]
[1759779604593,13.7364,4699.2,4699.1,11.468775]
[1759779604794,13.63,4699.2,4699.1,11.468775]
[1759779605110,13.7364,4699.2,4699.1,11.468775]
[1759779605524,13.7364,4699.2,4699.1,12.563566]
[1759779606623,13.7364,4699.2,4699.1,15.880777]
[1759779607024,13.7364,4699.2,4699.1,12.150775]
[1759779607609,13.7364,4699.2,4699.1,7.3724]
[1759779607925,13.7364,4699.2,4699.1,4.536]
[1759779608130,15.11004,4699.2,4699.1,2.411]
[1759779608298,15.11004,4699.2,4699.1,0.011]
[1759779608299,17.87166179,4699.2,4699.1,0.011]
[1759779608694,17.87166179,4699.2,4699.1,1.0]
[1759779610621,17.87166179,4699.2,4699.1,0.011]
[1759779610926,17.87166179,4699.2,4699.1,0.899]
[1759779612129,17.87166179,4699.2,4699.1,0.011]
[1759779612499,17.87166179,4699.2,4699.1,0.821]
[1759779612829,17.87166179,4699.2,4699.1,2.415]
[1759779613004,15.74364,4699.2,4699.1,2.415]
[1759779613200,17.87166179,4699.2,4699.1,2.415]
[1759779613531,17.96298272,4699.2,4699.1,0.011]
[1759779619003,17.96298272,4699.2,4699.1,2.415]
[1759779620113,17.96298272,4699.2,4699.1,0.011]
[1759779620342,17.96298272,4699.2,4699.1,2.415]
[1759779622156,17.96298272,4699.2,4699.1,0.011]
[1759779622355,17.96298272,4699.2,4699.1,0.923]
[1759779622735,17.96298272,4699.2,4699.1,0.011]
[1759779622959,17.96298272,4699.2,4699.1,2.415]
[1759779623426,18.06938272,4699.2,4699.1,2.415]
[1759779623831,18.06938272,4699.2,4699.1,0.011]
[1759779624059,18.06938272,4699.2,4699.1,2.415]
[1759779624228,18.06938272,4699.2,4699.1,0.011]
[1759779624427,18.06938272,4699.2,4699.1,2.415]
[1759779624865,20.30238272,4699.2,4699.1,2.415]
[1759779626839,20.30238272,4699.2,4699.1,0.011]
[1759779629759,20.30238272,4699.2,4699.1,1e-08]
[1759779630132,22.70238272,4699.2,4699.1,1e-08]
[1759779630343,23.1574347,4699.2,4699.1,1e-08]
[1759779631769,22.70238272,4699.2,4699.1,1e-08]
[1759779633442,23.15751052,4699.2,4699.1,1e-08]
[1759779633971,25.56151052,4699.2,4699.1,1e-08]
[1759779637185,25.56151052,4699.2,4698.6,0.001]
[1759779637186,2.12824823,4698.7,4698.6,0.001]
[1759779637370,10.59197207,4698.7,4698.6,0.001]
[1759779637564,11.04709987,4698.7,4698.6,0.001]
[1759779639196,2.76252787,4697.2,4697.1,0.01]
[1759779639358,2.96018041,4697.2,4697.1,0.01]
[1759779639686,2.81948041,4697.2,4697.1,0.01]
[1759779639858,3.31431445,4697.2,4697.1,0.4467]
[1759779641184,3.31425358,4697.2,4697.1,0.4467]
[1759779643590,3.11666191,4697.2,4697.1,0.4467]
[1759779643889,3.31414264,4697.2,4697.1,0.01]
[1759779644381,3.31414264,4697.2,4697.1,0.4467]
[1759779644765,3.31414264,4697.2,4697.1,0.4477]
[1759779645781,3.31414264,4697.2,4697.1,0.011]
[1759779646395,3.31414264,4697.2,4697.1,0.4477]
[1759779646799,0.63894973,4697.8,4697.1,0.4477]
[1759779646800,0.56870144,4699.1,4697.1,0.4477]
[1759779647111,0.56870144,4699.1,4697.2,0.433]
[1759779647112,2.12869439,4697.8,4697.2,0.433]
[1759779647312,0.41517086,4698.8,4697.3,0.4367]
[1759779647474,0.19743873,4698.7,4697.3,0.4367]
[1759779647674,15.45334,4699.2,4697.5,2.4]
[1759779647675,2.12814038,4699.0,4697.5,2.4]
[1759779647908,1.71337804,4698.9,4697.6,0.4367]
[1759779648083,1.71337804,4698.9,4697.8,2.4]
[1759779648284,1.71337804,4698.9,4697.9,0.4367]
[1759779648483,2.12811403,4699.0,4697.9,0.4367]
[1759779649070,2.12816289,4698.9,4697.9,0.4367]
[1759779649274,0.6336,4698.8,4697.9,0.4367]
[1759779649475,2.12814246,4699.0,4698.0,4.805]
[1759779649811,2.12821274,4698.8,4698.1,0.4367]
[1759779649995,0.6336,4698.7,4698.1,0.4367]
[1759779650325,0.6336,4698.8,4698.1,0.4367]
[1759779651601,0.6336,4698.8,4698.2,2.404]
[1759779651806,0.6336,4698.8,4698.3,2.404]
[1759779651807,0.6336,4698.7,4698.3,2.404]
[1759779652004,2.12833883,4698.5,4698.4,2.8407]
[1759779652327,0.6336,4698.7,4698.4,2.8407]
[1759779652526,0.6336,4698.7,4698.4,2.404]
[1759779652818,0.6336,4698.7,4698.5,0.4367]
[1759779653323,2.76186417,4698.7,4698.5,0.4367]
[1759779653535,13.632,4699.2,4698.4,2.404]
[1759779653691,0.6336,4698.8,4698.6,0.4367]
[1759779653890,2.12818854,4698.9,4698.6,0.4367]
[1759779654225,0.6336,4699.0,4698.6,0.4367]
[1759779654809,13.632,4699.2,4698.6,0.4367]
[1759779655113,13.632,4699.2,4698.8,2.4]
[1759779655309,13.632,4699.2,4698.7,5.360637]
[1759779655310,13.632,4699.2,4698.9,0.4367]
[1759779656895,0.1064,4699.0,4698.9,0.4367]
[1759779657723,0.1064,4699.0,4698.9,5.2407]
[1759779658434,0.1064,4699.0,4698.9,2.8367]
[1759779658640,0.1064,4699.0,4698.9,5.2407]
[1759779659811,0.74,4699.0,4698.9,2.4]
[1759779660017,2.76178581,4698.9,4698.4,0.4367]
[1759779660251,0.6336,4698.9,4698.5,5.2407]
[1759779660516,0.6336,4698.9,4698.7,2.4]
[1759779660729,0.6336,4698.9,4698.8,0.4367]
[1759779661110,0.6336,4698.9,4698.6,2.404]
[1759779661111,0.6336,4698.7,4698.6,2.404]
[1759779661315,0.6336,4698.7,4698.5,2.4]
[1759779661316,0.6336,4698.6,4698.0,0.4367]
[1759779661864,0.1064,4698.1,4698.0,0.4367]
[1759779662155,0.1064,4698.1,4698.0,5.2407]
[1759779662364,0.1064,4698.1,4698.0,2.8367]
[1759779662650,0.1064,4698.1,4698.0,5.2407]
[1759779663921,0.1064,4698.1,4698.0,4.805]
[1759779664425,0.1064,4698.1,4698.0,5.2571]
[1759779669234,0.96348718,4698.1,4698.0,4.805]
[1759779669440,0.74,4698.1,4698.0,4.805]
[1759779670828,0.74,4698.1,4698.0,5.2571]
[1759779671867,0.74,4698.1,4698.0,2.4]
[1759779672046,0.74,4698.1,4698.0,4.806]
[1759779674263,0.74,4698.1,4698.0,2.406]
[1759779674558,0.74,4698.1,4697.4,0.4521]
[1759779674559,0.6336,4698.0,4697.4,0.4521]
[1759779674764,0.6336,4698.0,4697.5,2.405]
[1759779674968,0.1064,4697.6,4697.5,2.405]
[1759779675671,0.1064,4697.6,4697.5,5.2571]
[1759779677434,0.1064,4697.6,4697.5,8.5852]
[1759779678169,0.1064,4697.6,4697.5,5.2571]
[1759779678564,0.1064,4697.6,4697.5,7.924739]
[1759779679068,0.1064,4697.6,4697.5,5.2571]
[1759779680966,0.1064,4697.6,4697.5,10.35139]
[1759779681284,0.1064,4697.6,4697.5,9.725843]
[1759779681891,0.1064,4697.6,4697.5,4.84432]
[1759779682173,0.1064,4697.6,4697.5,7.70142]
[1759779683801,0.1064,4697.6,4697.5,5.2571]
[1759779685697,0.1064,4697.6,4696.7,2.126]
[1759779685991,0.6336,4697.8,4697.2,2.408]
[1759779686287,0.1064,4697.3,4697.2,2.408]
[1759779687798,0.1064,4697.3,4697.2,0.4521]
[1759779688097,0.1064,4697.3,4697.2,4.808]
[1759779688894,0.1064,4697.3,4686.9,11.29]
[1759779689106,0.6336,4697.7,4694.7,0.37801067]
[1759779689296,0.27622561,4697.6,4695.1,0.63873887]
[1759779689465,0.6336,4697.5,4695.2,30.318]
[1759779689793,0.6336,4697.5,4695.3,32.126]
[1759779689955,0.6336,4697.5,4695.4,32.408]
[1759779690161,0.6336,4697.5,4695.5,30.0]
[1759779690360,0.6336,4697.5,4695.6,2.408]
[1759779690604,0.6336,4697.5,4695.7,30.0]
[1759779690779,0.6336,4697.5,4695.8,6.746]
[1759779691112,0.002,4698.1,4695.8,6.746]
[1759779691113,0.6336,4697.8,4696.0,2.4]
[1759779691269,0.6336,4697.8,4695.9,23.158538]
[1759779691270,0.01,4697.9,4696.2,2.4]
[1759779691633,0.01,4696.9,4696.4,2.38]
[1759779691905,0.01,4697.9,4696.5,25.144515]
[1759779692100,0.01,4697.9,4696.6,20.203722]
[1759779692281,0.01,4697.9,4696.7,2.409]
[1759779692489,0.01,4697.9,4696.8,21.326901]
[1759779692686,0.01,4697.9,4696.9,19.314938]
[1759779692873,0.01,4697.9,4697.0,16.327938]
[1759779693199,0.01,4697.9,4697.0,4.562996]
[1759779693380,0.01,4697.9,4697.1,6.605516]
[1759779693578,0.01,4697.9,4697.3,2.4]
[1759779693794,0.33090811,4697.9,4697.4,2.409]
[1759779694199,0.33090811,4697.9,4697.5,2.408]
[1759779694401,0.33090811,4697.9,4697.0,0.4738]
[1759779694402,0.6336,4697.8,4697.0,0.4738]
[1759779694705,1.0686,4697.8,4697.1,4.534383]
[1759779694908,0.6436,4697.9,4697.3,2.4]
[1759779695110,0.6336,4697.7,4697.2,4.809]
[1759779695281,0.6336,4697.7,4697.2,2.8828]
[1759779695715,0.6336,4697.7,4697.3,2.409]
[1759779697926,0.01,4697.9,4697.4,2.4]
[1759779698431,0.01,4697.9,4697.3,2.409]
[1759779698633,0.6336,4697.7,4697.5,0.4494]
[1759779698803,0.6336,4697.7,4696.3,4.612]
[1759779699008,0.6336,4697.4,4696.5,2.4]
[1759779699317,0.6336,4697.4,4696.7,2.4]
[1759779699318,0.1064,4696.8,4696.7,2.4]
[1759779699634,0.1064,4696.8,4696.7,10.510951]
[1759779699938,0.74,4696.8,4696.7,2.4]
[1759779700237,0.6336,4696.7,4696.6,0.001]
[1759779700415,0.28691011,4696.7,4696.6,2.414]
[1759779700614,0.39331011,4696.7,4696.6,2.414]
[1759779700805,1.02691011,4696.7,4696.6,2.414]
[1759779701016,3.15606462,4696.7,4696.6,2.415]
[1759779701445,3.15606462,4696.7,4696.6,0.001]
[1759779701762,3.60806462,4696.7,4696.6,2.033]
[1759779702817,3.60806462,4696.7,4696.6,0.001]
[1759779703006,3.60806462,4696.7,4696.6,2.415]
[1759779703906,3.80524277,4696.7,4696.6,2.415]
[1759779704308,3.15606462,4696.7,4696.6,2.415]
[1759779704920,1.02691011,4696.7,4696.6,2.415]
[1759779705322,0.74,4696.7,4696.6,2.415]
[1759779705540,2.86915451,4696.7,4696.6,2.415]
[1759779706229,0.74,4696.7,4696.6,2.415]
[1759779707246,0.1064,4696.7,4696.6,2.8644]
[1759779707744,0.1064,4696.7,4696.6,5.2644]
[1759779708326,0.6336,4696.7,4696.6,2.416]
[1759779708712,3.03901983,4696.7,4696.6,2.416]
[1759779709046,0.90986532,4696.7,4696.6,2.416]
[1759779709217,0.6336,4696.7,4696.6,2.416]
[1759779709631,0.6336,4696.7,4696.6,0.001]
[1759779709834,0.6336,4696.7,4696.6,4.43420862]
[1759779710148,0.6336,4696.7,4696.6,6.84920862]
[1759779710519,0.6336,4696.7,4696.6,7.29860862]
[1759779711220,0.6336,4696.7,4696.6,6.84920862]
[1759779711965,0.6336,4696.7,4696.6,4.43420862]
[1759779712160,0.6336,4696.7,4696.6,6.84920862]
[1759779713428,2.76275451,4696.7,4696.6,6.84920862]
[1759779713618,0.6336,4696.7,4696.6,6.84920862]
[1759779714216,0.6336,4696.7,4696.6,7.29860862]
[1759779715522,0.6336,4696.7,4696.6,0.001]
[1759779715523,3.03902285,4696.7,4696.6,0.001]
[1759779715726,3.49102285,4696.7,4696.6,2.416]
[1759779716929,3.03902285,4696.7,4696.6,2.416]
[1759779718253,3.14542285,4696.7,4696.6,2.416]
[1759779719223,3.14542285,4696.7,4696.6,0.001]
[1759779719422,3.14542285,4696.7,4696.6,2.416]
[1759779721071,1.01626834,4696.7,4696.6,2.416]
[1759779721245,0.74,4696.7,4696.6,7.29860862]
[1759779721445,0.74,4696.7,4696.6,6.84920862]
[1759779721634,0.74,4696.7,4696.6,7.29860862]
[1759779722166,0.74,4696.7,4696.6,6.84920862]
[1759779722344,0.1064,4696.7,4696.6,2.8654]
[1759779722870,2.23555451,4696.7,4696.6,6.85520862]
[1759779723050,3.30581384,4696.7,4696.6,4.43420862]
[1759779723373,3.30581384,4696.7,4696.6,6.85520862]
[1759779723570,1.17665933,4696.7,4696.6,6.85520862]
[1759779723738,1.17665933,4696.7,4696.6,4.43420862]
[1759779723938,1.17665933,4696.7,4696.6,6.85520862]
[1759779724152,2.86915451,4696.7,4696.6,6.85520862]
[1759779724351,2.86915451,4696.7,4696.6,4.43420862]
[1759779724549,2.86915451,4696.7,4696.6,6.85520862]
[1759779726053,2.86915451,4696.7,4696.6,0.001]
[1759779726362,3.31445451,4696.7,4696.6,2.422]
[1759779726684,3.85900864,4696.7,4696.6,0.001]
[1759779726865,3.85900864,4696.7,4696.6,2.422]
[1759779728378,4.05679981,4696.7,4696.6,2.422]
[1759779728579,3.61149981,4696.7,4696.6,2.422]
[1759779729276,3.61149981,4696.7,4696.6,0.001]
[1759779729485,4.05679981,4696.7,4696.6,2.421]
[1759779729644,4.40620301,4696.7,4696.6,2.421]
[1759779730277,4.40620301,4696.7,4696.6,0.001]
[1759779730452,2.76338936,4695.3,4695.2,0.00253368]
[1759779730656,0.6336,4695.3,4695.2,8.61844668]
[1759779730854,0.6336,4695.3,4695.2,6.00544668]
[1759779731056,0.6336,4695.3,4695.2,0.00253368]
[1759779731278,2.76338936,4695.3,4695.2,0.43543368]
[1759779731481,2.76338936,4695.3,4695.2,0.00253368]
[1759779731662,2.76338936,4695.3,4695.2,2.42353368]
[1759779732342,2.76338936,4695.3,4695.2,0.00253368]
[1759779732546,3.25270049,4695.3,4695.2,2.42453368]
[1759779733567,2.76338936,4695.3,4695.2,2.42453368]
[1759779734794,2.76338936,4695.3,4695.2,0.38543368]
[1759779735696,2.76338936,4695.3,4695.1,0.01]
[1759779735697,2.76343472,4695.2,4695.1,0.01]
[1759779736095,2.76343472,4695.2,4695.1,2.432]
[1759779737363,2.76343472,4695.2,4695.1,2.433]
[1759779737685,2.76343472,4695.2,4695.1,2.8659]
[1759779738089,0.4473,4696.9,4695.2,30.0]
[1759779738289,2.12942654,4696.1,4696.0,5.41938934]
[1759779738604,2.12942654,4696.1,4696.0,8.27328934]
[1759779738762,2.76302654,4696.1,4696.0,2.421]
[1759779738962,2.76302654,4696.1,4695.1,2.411]
[1759779738963,0.6336,4695.3,4695.1,2.411]
[1759779739212,0.4453,4696.1,4695.1,2.411]
[1759779739213,0.6336,4696.0,4695.2,2.421]
[1759779739496,2.129744,4695.4,4695.3,2.4]
[1759779739701,2.129744,4695.4,4695.3,2.8329]
[1759779739901,2.236144,4695.4,4695.3,2.8329]
[1759779740069,0.1064,4695.4,4695.3,2.8329]
[1759779740825,2.236144,4695.4,4695.3,2.8329]
[1759779741122,0.1064,4695.4,4695.3,2.8329]
[1759779741884,0.6336,4695.2,4695.1,0.011]
[1759779742109,2.76343472,4695.2,4695.1,2.432]
[1759779742599,3.26339713,4695.2,4695.1,2.432]
[1759779744286,3.26339713,4695.2,4695.1,0.011]
[1759779744493,3.26339713,4695.2,4695.1,2.432]
[1759779744693,3.26339713,4695.2,4695.1,0.011]
[1759779744903,3.26339713,4695.2,4695.1,2.432]
[1759779748595,3.70869713,4695.2,4695.1,0.011]
[1759779748808,3.90586471,4695.2,4695.1,2.158]
[1759779749017,3.90586471,4695.2,4695.1,2.432]
[1759779751128,3.46056471,4695.2,4695.1,2.432]
[1759779753836,3.56696471,4695.2,4695.1,2.432]
[1759779754207,4.00716471,4695.2,4695.1,2.432]
[1759779754405,4.00708671,4695.2,4695.1,2.432]
[1759779756611,3.56688671,4695.2,4695.1,2.432]
[1759779757151,4.03938671,4695.2,4695.1,2.432]
[1759779757357,0.6336,4695.0,4694.1,0.01]
[1759779757651,2.76384306,4694.3,4694.2,2.422]
[1759779758141,2.87024306,4694.3,4694.2,2.8693]
[1759779760424,2.87024306,4694.3,4694.2,2.422]
[1759779761325,2.87024306,4694.3,4694.2,2.8693]
[1759779763446,0.74,4694.3,4694.2,2.8693]
[1759779763645,2.87024306,4694.3,4694.2,2.8693]
[1759779764552,0.74,4694.3,4694.2,2.8693]
[1759779764755,0.6336,4694.2,4694.1,0.01]
[1759779764940,0.6336,4694.2,4694.1,2.431]
[1759779765450,2.76388844,4694.2,4694.1,2.8783]
[1759779765754,3.26393294,4694.2,4694.1,0.01]
[1759779765954,3.26393294,4694.2,4694.1,2.431]
[1759779766428,3.26393294,4694.2,4694.1,2.8783]
[1759779766623,3.26393294,4694.2,4694.1,2.431]
[1759779768744,1.1336445,4694.2,4694.1,2.431]
[1759779768952,0.6336,4694.2,4694.1,2.8783]
[1759779769455,0.6336,4694.2,4694.1,2.431]
[1759779769456,2.76388844,4694.2,4694.1,2.431]
[1759779775768,2.76388844,4694.2,4694.1,2.432]
[1759779775985,0.6336,4694.2,4694.1,2.432]
[1759779776275,0.002,4695.4,4694.3,2.4]
[1759779776475,0.19759658,4695.3,4694.7,5.41938934]
[1759779776660,0.002,4695.4,4694.8,2.42]
[1759779776661,2.13488524,4695.1,4694.8,2.42]
[1759779776970,2.76352545,4695.0,4694.9,2.42]
[1759779777271,0.74,4695.0,4694.9,2.42]
[1759779777477,0.74,4695.0,4694.1,0.011]
[1759779777478,2.73703494,4695.0,4694.1,0.011]
[1759779777769,0.005,4695.1,4694.3,2.4]
[1759779777770,2.76362781,4694.8,4694.3,2.4]
[1759779777952,2.76362781,4694.8,4694.4,0.4473]
[1759779778148,2.76362781,4694.8,4694.5,2.8673]
[1759779778376,2.76362781,4694.8,4694.6,2.614249]
[1759779778545,2.76362781,4694.8,4694.7,2.166949]
[1759779778740,0.005,4695.1,4694.7,2.614249]
[1759779779050,0.6336,4694.9,4694.8,2.8673]
[1759779779253,0.005,4695.1,4694.8,2.8673]
[1759779779576,0.005,4695.1,4694.9,0.4473]
[1759779779866,2.76354268,4695.0,4694.9,0.4473]
[1759779780074,2.86994268,4695.0,4694.9,0.4473]
[1759779780872,2.76357081,4694.9,4694.8,2.42]
[1759779781075,3.34719206,4694.9,4694.8,2.42]
[1759779781261,0.6336,4694.4,4694.1,0.011]
[1759779781443,0.6336,4694.4,4694.3,7.81938934]
[1759779781644,0.6336,4694.8,4694.4,2.4]
[1759779781852,2.98802788,4694.8,4694.5,2.8673]
[1759779782077,2.76370693,4694.6,4694.5,2.8673]
[1759779782280,0.74,4694.6,4694.5,2.8673]
[1759779783469,0.74,4694.6,4694.5,9.016072]
[1759779783779,0.74,4694.6,4694.5,6.357122]
[1759779784679,0.1064,4694.6,4694.5,30.512718]
[1759779784975,0.1064,4694.6,4694.5,35.2673]
[1759779785177,0.005,4695.1,4694.5,32.975512]
[1759779785378,0.005,4695.1,4695.0,5.41938934]
[1759779785682,0.005,4695.1,4695.0,7.83938934]
[1759779786055,0.005,4695.1,4695.0,8.31278934]
[1759779786257,0.005,4695.1,4695.0,2.171863]
[1759779786464,0.005,4695.1,4695.0,2.42]
[1759779786669,0.005,4695.1,4695.0,11.227585]
[1759779786868,0.005,4695.1,4695.0,7.650482]
[1759779787647,0.005,4695.1,4695.0,13.376467]
[1759779787954,0.005,4695.1,4695.0,18.992084]
[1759779788353,0.005,4695.1,4695.0,11.113323]
[1759779788680,0.005,4695.1,4695.0,8.147537]
[1759779789682,0.005,4695.1,4695.0,14.965523]
[1759779790675,0.005,4695.1,4695.0,5.2934]
[1759779790953,0.005,4695.1,4695.0,27.604307]
[1759779791480,0.005,4695.1,4695.0,22.703617]
[1759779791884,0.005,4695.1,4695.0,25.766113]
[1759779792052,0.005,4695.1,4695.0,28.185113]
[1759779792874,0.005,4695.1,4695.0,35.2924]
[1759779793885,0.007,4695.1,4695.0,35.2924]
[1759779794874,0.007,4695.1,4695.0,35.3988]
[1759779795276,0.007,4695.1,4695.0,37.6128]
[1759779797892,0.007,4695.1,4695.0,32.9798]
[1759779798081,0.007,4695.1,4695.0,37.6128]
[1759779798782,0.007,4695.1,4695.0,32.5064]
[1759779798991,0.007,4695.1,4695.0,10.388951]
[1759779799300,0.007,4695.1,4695.0,20.8267605]
[1759779799470,0.007,4695.1,4695.0,18.6997605]
[1759779799901,0.007,4695.1,4695.0,42.8378095]
[1759779800093,0.007,4695.1,4695.0,39.43421885]
[1759779800404,0.007,4695.1,4695.0,41.85321885]
[1759779801192,0.007,4695.1,4695.0,41.65321885]
[1759779803902,0.007,4695.1,4695.0,41.86971602]
[1759779804845,0.007,4695.1,4695.0,42.0930949]
[1759779804988,0.007,4695.1,4695.0,41.86971602]
[1759779805720,0.007,4695.1,4695.0,39.45071602]
[1759779805930,0.007,4695.1,4695.0,44.08171602]
[1759779808540,0.007,4695.1,4695.0,39.23421885]
[1759779808746,0.007,4695.1,4695.0,43.86321885]
[1759779809041,0.007,4695.1,4695.0,43.96961885]
[1759779810902,0.007,4695.1,4695.0,39.34061885]
[1759779811103,0.007,4695.1,4695.0,41.17781885]
[1759779811909,0.007,4695.1,4695.0,41.17881885]
[1759779813223,0.007,4695.1,4695.0,28.569226]
[1759779813542,0.007,4695.1,4695.0,31.67317885]
[1759779814245,0.007,4695.1,4695.0,41.17881885]
[1759779814455,0.007,4695.1,4695.0,36.55093685]
[1759779814760,0.007,4695.1,4695.0,36.76743402]
[1759779815327,0.007,4695.1,4695.0,41.84541602]
[1759779815936,0.007,4695.1,4695.0,39.21191885]
[1759779816139,0.007,4695.1,4695.0,43.84091885]
[1759779817639,0.007,4695.1,4695.0,39.21191885]
[1759779817859,0.007,4695.1,4695.0,43.84091885]
[1759779818227,0.007,4695.1,4695.0,13.84091885]
[1759779819139,0.007,4695.1,4695.0,43.84091885]
[1759779820333,0.007,4695.1,4695.0,39.21191885]
[1759779820533,0.007,4695.1,4695.0,43.83991885]
[1759779821266,0.007,4695.1,4695.0,43.94631885]
[1759779821474,0.007,4695.1,4695.0,44.03148765]
[1759779822281,0.007,4695.1,4695.0,44.03048765]
[1759779822448,0.007,4695.1,4695.0,39.40348765]
[1759779822642,0.007,4695.1,4695.0,38.95338765]
[1759779822848,0.007,4695.1,4695.0,43.49521885]
[1759779824987,0.007,4695.1,4695.0,43.49621885]
[1759779825947,0.007,4695.1,4695.0,38.86821885]
[1759779826381,0.007,4695.1,4695.0,43.49621885]
[1759779828349,0.007,4695.1,4695.0,43.49521885]
[1759779828886,0.007,4695.1,4695.0,38.86821885]
[1759779829049,0.007,4695.1,4695.0,43.49521885]
[1759779829876,0.007,4695.1,4695.0,43.96851885]
[1759779834258,0.007,4695.1,4695.0,43.91851885]
[1759779834587,0.007,4695.1,4695.0,13.91851885]
[1759779835384,0.007,4695.1,4695.0,43.91851885]
[1759779835557,0.007,4695.1,4695.0,13.91851885]
[1759779836583,0.007,4695.1,4695.0,43.91851885]
[1759779839695,0.007,4695.1,4695.0,13.91851885]
[1759779840458,0.007,4695.1,4695.0,44.13501602]
[1759779840674,0.007,4695.1,4695.0,16.35010538]
[1759779840967,0.007,4695.1,4695.0,16.55929729]
[1759779841167,0.007,4695.1,4695.0,46.55929729]
[1759779841469,0.007,4695.1,4695.0,46.45289729]
[1759779841666,0.007,4695.1,4695.0,16.45289729]
[1759779842197,0.007,4695.1,4695.0,46.45289729]
[1759779842784,0.007,4695.1,4695.0,46.24370538]
[1759779844691,0.007,4695.1,4695.0,46.15854147]
[1759779845779,0.007,4695.1,4695.0,50.59236032]
[1759779845980,0.007,4695.1,4695.0,51.43515223]
[1759779846220,0.007,4695.1,4695.0,51.61580462]
[1759779846416,0.007,4695.1,4695.0,55.12660749]
[1759779847213,0.002,4695.4,4695.3,48.81882993]
[1759779847413,0.002,4695.4,4695.3,51.8401714]